[Event "Titled Tuesday Blitz January 04 2022"]
[White "Koelle, Tobias"]
[Black "Ibrahimli, Murad"]
[WhiteFideId "16207378"]
[BlackFideId "13410229"]
[WhiteElo "2541"]
[BlackElo "2109"]
[Result "0-1"]
[Round "01"]
[TimeControl "180+1"]
[Date "2022.01.04"]
[WhiteClock "0:01:06"]
[BlackClock "0:01:10"]

1. d4 {[%clk 0:02:58]}  Nf6 {[%clk 0:02:58]} 2. Nf3 {[%clk 0:02:56]}  e6 {[%clk 0:02:59]} 3. g3 {[%clk 0:02:56]}  b5 {[%clk 0:02:57]} 4. Bg2 {[%clk 0:02:56]}  Bb7 {[%clk 0:02:57]} 5. O-O {[%clk 0:02:57]}  Be7 {[%clk 0:02:57]} 6. a4 {[%clk 0:02:56]}  b4 {[%clk 0:02:56]} 7. c3 {[%clk 0:02:56]}  O-O {[%clk 0:02:52]} 8. Re1 {[%clk 0:02:54]}  a5 {[%clk 0:02:50]} 9. cxb4 {[%clk 0:02:53]}  Bxb4 {[%clk 0:02:49]} 10. Nc3 {[%clk 0:02:51]}  Na6 {[%clk 0:02:47]} 11. Qc2 {[%clk 0:02:51]}  c5 {[%clk 0:02:34]} 12. dxc5 {[%clk 0:02:47]}  Nxc5 {[%clk 0:02:34]} 13. Bf4 {[%clk 0:02:46]}  Rc8 {[%clk 0:02:27]} 14. Nb5 {[%clk 0:02:20]}  Bxe1 {[%clk 0:02:20]} 15. Rxe1 {[%clk 0:02:15]}  Nce4 {[%clk 0:02:20]} 16. Qb1 {[%clk 0:02:11]}  Ng4 {[%clk 0:02:15]} 17. Ng5 {[%clk 0:02:04]}  Nxg5 {[%clk 0:01:58]} 18. Bxb7 {[%clk 0:02:02]}  Nh3+ {[%clk 0:01:58]} 19. Kf1 {[%clk 0:01:56]}  Nxf4 {[%clk 0:01:42]} 20. Bxc8 {[%clk 0:01:53]}  Qxc8 {[%clk 0:01:43]} 21. gxf4 {[%clk 0:01:52]}  Qc5 {[%clk 0:01:43]} 22. e3 {[%clk 0:01:49]}  Qh5 {[%clk 0:01:41]} 23. Qe4 {[%clk 0:01:47]}  f5 {[%clk 0:01:39]} 24. Qb7 {[%clk 0:01:43]}  d5 {[%clk 0:01:32]} 25. Ke2 {[%clk 0:01:22]}  Ne5+ {[%clk 0:01:28]} 26. Kd2 {[%clk 0:01:10]}  Nf3+ {[%clk 0:01:27]} 27. Ke2 {[%clk 0:01:10]}  Nxe1+ {[%clk 0:01:24]} 28. Kxe1 {[%clk 0:01:11]}  Qxh2 {[%clk 0:01:22]} 29. Nd4 {[%clk 0:01:11]}  Qg1+ {[%clk 0:01:21]} 30. Ke2 {[%clk 0:01:12]}  Qg4+ {[%clk 0:01:21]} 31. Ke1 {[%clk 0:01:12]}  Qg6 {[%clk 0:01:22]} 32. Qe7 {[%clk 0:01:13]}  h5 {[%clk 0:01:18]} 33. Nf3 {[%clk 0:01:10]}  Rc8 {[%clk 0:01:17]} 34. Ne5 {[%clk 0:01:07]}  Qg1+ {[%clk 0:01:11]} 35. Ke2 {[%clk 0:01:06]}  Rc2+ {[%clk 0:01:10]} 36. Kd3 {[%clk 0:01:06]}  Qd1# {[%clk 0:01:10]} 0-1


[Site "https://www.chess.com"]

[Event "Titled Tuesday Blitz January 04 2022"]
[White "Lehtosaari, Mauri"]
[Black "Perez Ponsa, Federico"]
[WhiteFideId "501999"]
[BlackFideId "117927"]
[WhiteElo "2488"]
[BlackElo "2672"]
[Result "0-1"]
[Round "01"]
[TimeControl "180+1"]
[Date "2022.01.04"]
[WhiteClock "0:00:09"]
[BlackClock "0:00:33"]

1. d4 {[%clk 0:02:59]}  Nf6 {[%clk 0:02:57]} 2. Nf3 {[%clk 0:02:59]}  d5 {[%clk 0:02:57]} 3. Bg5 {[%clk 0:02:58]}  h6 {[%clk 0:02:55]} 4. Bxf6 {[%clk 0:02:58]}  exf6 {[%clk 0:02:56]} 5. Nbd2 {[%clk 0:02:57]}  g6 {[%clk 0:02:55]} 6. e3 {[%clk 0:02:58]}  f5 {[%clk 0:02:53]} 7. c4 {[%clk 0:02:57]}  dxc4 {[%clk 0:02:50]} 8. Bxc4 {[%clk 0:02:58]}  Bd6 {[%clk 0:02:50]} 9. h4 {[%clk 0:02:55]}  Nd7 {[%clk 0:02:47]} 10. h5 {[%clk 0:02:54]}  g5 {[%clk 0:02:47]} 11. Qc2 {[%clk 0:02:51]}  Nb6 {[%clk 0:02:44]} 12. Bd3 {[%clk 0:02:41]}  Qf6 {[%clk 0:02:44]} 13. Nc4 {[%clk 0:02:08]}  Bb4+ {[%clk 0:02:39]} 14. Nfd2 {[%clk 0:02:07]}  O-O {[%clk 0:02:35]} 15. a3 {[%clk 0:02:07]}  Be7 {[%clk 0:02:35]} 16. Ne5 {[%clk 0:02:03]}  c5 {[%clk 0:02:34]} 17. f4 {[%clk 0:01:27]}  cxd4 {[%clk 0:02:32]} 18. exd4 {[%clk 0:01:26]}  Nd5 {[%clk 0:02:31]} 19. fxg5 {[%clk 0:01:16]}  hxg5 {[%clk 0:02:31]} 20. Ndf3 {[%clk 0:01:15]}  g4 {[%clk 0:02:26]} 21. Nh4 {[%clk 0:01:09]}  Ne3 {[%clk 0:02:21]} 22. Qe2 {[%clk 0:01:07]}  Qg5 {[%clk 0:02:17]} 23. g3 {[%clk 0:01:02]}  f4 {[%clk 0:02:12]} 24. h6 {[%clk 0:00:45]}  Qxh6 {[%clk 0:01:54]} 25. gxf4 {[%clk 0:00:39]}  Bxh4+ {[%clk 0:01:50]} 26. Kd2 {[%clk 0:00:39]}  Qxf4 {[%clk 0:01:50]} 27. Qxe3 {[%clk 0:00:38]}  Qxe3+ {[%clk 0:01:47]} 28. Kxe3 {[%clk 0:00:39]}  Bg5+ {[%clk 0:01:47]} 29. Ke2 {[%clk 0:00:37]}  f5 {[%clk 0:01:46]} 30. Rh5 {[%clk 0:00:36]}  Bf6 {[%clk 0:01:39]} 31. Rah1 {[%clk 0:00:36]}  Be6 {[%clk 0:01:35]} 32. Rh6 {[%clk 0:00:30]}  Rae8 {[%clk 0:01:32]} 33. Rg6+ {[%clk 0:00:29]}  Bg7 {[%clk 0:01:32]} 34. Rh5 {[%clk 0:00:28]}  Rf6 {[%clk 0:01:29]} 35. Rgg5 {[%clk 0:00:25]}  Bf7 {[%clk 0:01:25]} 36. Rh1 {[%clk 0:00:22]}  Kf8 {[%clk 0:01:13]} 37. Kf2 {[%clk 0:00:20]}  Be6 {[%clk 0:00:58]} 38. Rh7 {[%clk 0:00:18]}  Re7 {[%clk 0:00:55]} 39. Rhh5 {[%clk 0:00:15]}  Rh6 {[%clk 0:00:47]} 40. Bxf5 {[%clk 0:00:14]}  Rxh5 {[%clk 0:00:35]} 41. Rxh5 {[%clk 0:00:15]}  Bxe5 {[%clk 0:00:35]} 42. dxe5 {[%clk 0:00:15]}  Rf7 {[%clk 0:00:35]} 43. Rh8+ {[%clk 0:00:09]}  Ke7 {[%clk 0:00:33]} 0-1


[Site "https://www.chess.com"]

[Event "Titled Tuesday Blitz January 04 2022"]
[White "Martinez Alcantara, Jose Eduardo"]
[Black "Seul, Georg"]
[WhiteFideId "3805662"]
[BlackFideId "4601653"]
[WhiteElo "2690"]
[BlackElo "2271"]
[Result "1-0"]
[Round "01"]
[TimeControl "180+1"]
[Date "2022.01.04"]
[WhiteClock "0:01:21"]
[BlackClock "0:00:18"]

1. e4 {[%clk 0:02:59]}  c6 {[%clk 0:02:58]} 2. d4 {[%clk 0:02:53]}  d5 {[%clk 0:02:58]} 3. e5 {[%clk 0:02:54]}  c5 {[%clk 0:02:57]} 4. dxc5 {[%clk 0:02:53]}  e6 {[%clk 0:02:57]} 5. Be3 {[%clk 0:02:46]}  Nd7 {[%clk 0:02:54]} 6. Bb5 {[%clk 0:02:40]}  Ne7 {[%clk 0:02:53]} 7. Nf3 {[%clk 0:02:21]}  a6 {[%clk 0:02:36]} 8. Bxd7+ {[%clk 0:02:21]}  Bxd7 {[%clk 0:02:35]} 9. c3 {[%clk 0:02:21]}  Ng6 {[%clk 0:02:33]} 10. O-O {[%clk 0:02:20]}  Qc7 {[%clk 0:02:28]} 11. Nbd2 {[%clk 0:02:10]}  Bxc5 {[%clk 0:02:24]} 12. Bxc5 {[%clk 0:02:11]}  Qxc5 {[%clk 0:02:24]} 13. Nb3 {[%clk 0:02:12]}  Qc7 {[%clk 0:02:22]} 14. Re1 {[%clk 0:02:11]}  O-O {[%clk 0:02:21]} 15. Nbd4 {[%clk 0:02:11]}  Rae8 {[%clk 0:02:15]} 16. Qd2 {[%clk 0:02:06]}  f6 {[%clk 0:02:09]} 17. Qe3 {[%clk 0:02:07]}  Bc8 {[%clk 0:01:53]} 18. h4 {[%clk 0:02:03]}  Qf7 {[%clk 0:01:48]} 19. Re2 {[%clk 0:01:44]}  h6 {[%clk 0:01:30]} 20. h5 {[%clk 0:01:37]}  Nxe5 {[%clk 0:01:21]} 21. Nxe5 {[%clk 0:01:38]}  fxe5 {[%clk 0:01:21]} 22. Qxe5 {[%clk 0:01:39]}  Qf6 {[%clk 0:01:09]} 23. Rae1 {[%clk 0:01:37]}  Qxe5 {[%clk 0:01:09]} 24. Rxe5 {[%clk 0:01:38]}  Kf7 {[%clk 0:01:09]} 25. f3 {[%clk 0:01:37]}  Bd7 {[%clk 0:01:09]} 26. Kh2 {[%clk 0:01:37]}  Rg8 {[%clk 0:01:07]} 27. g4 {[%clk 0:01:36]}  b5 {[%clk 0:01:05]} 28. Kg3 {[%clk 0:01:32]}  a5 {[%clk 0:01:05]} 29. a3 {[%clk 0:01:33]}  Re7 {[%clk 0:01:00]} 30. Nf5 {[%clk 0:01:30]}  Ree8 {[%clk 0:00:47]} 31. Nd6+ {[%clk 0:01:30]}  Kf6 {[%clk 0:00:47]} 32. Nxe8+ {[%clk 0:01:29]}  Rxe8 {[%clk 0:00:47]} 33. f4 {[%clk 0:01:27]}  Rc8 {[%clk 0:00:46]} 34. g5+ {[%clk 0:01:28]}  hxg5 {[%clk 0:00:42]} 35. fxg5+ {[%clk 0:01:28]}  Kf7 {[%clk 0:00:39]} 36. Rf1+ {[%clk 0:01:18]}  Ke7 {[%clk 0:00:39]} 37. g6 {[%clk 0:01:19]}  Kd6 {[%clk 0:00:36]} 38. Rg5 {[%clk 0:01:19]}  b4 {[%clk 0:00:28]} 39. cxb4 {[%clk 0:01:20]}  axb4 {[%clk 0:00:28]} 40. axb4 {[%clk 0:01:21]}  Rc2 {[%clk 0:00:20]} 41. h6 {[%clk 0:01:20]}  gxh6 {[%clk 0:00:18]} 42. g7 {[%clk 0:01:21]} 1-0


[Site "https://www.chess.com"]

[Event "Titled Tuesday Blitz January 04 2022"]
[White "Migot, Tangi"]
[Black "Jobava, Baadur"]
[WhiteFideId "662445"]
[BlackFideId "13601520"]
[WhiteElo "2475"]
[BlackElo "2617"]
[Result "1-0"]
[Round "01"]
[TimeControl "180+1"]
[Date "2022.01.04"]
[WhiteClock "0:00:10"]
[BlackClock "0:00:40"]

1. e4 {[%clk 0:03:00]}  e6 {[%clk 0:02:56]} 2. d4 {[%clk 0:03:00]}  d5 {[%clk 0:02:57]} 3. Nc3 {[%clk 0:03:00]}  dxe4 {[%clk 0:02:57]} 4. Nxe4 {[%clk 0:02:59]}  Bd7 {[%clk 0:02:58]} 5. Nf3 {[%clk 0:02:59]}  Bc6 {[%clk 0:02:59]} 6. Bd3 {[%clk 0:02:59]}  Nd7 {[%clk 0:03:00]} 7. Bf4 {[%clk 0:02:59]}  Ngf6 {[%clk 0:03:00]} 8. Ng3 {[%clk 0:02:52]}  Bd6 {[%clk 0:02:59]} 9. Bxd6 {[%clk 0:02:47]}  cxd6 {[%clk 0:03:00]} 10. Qe2 {[%clk 0:02:46]}  O-O {[%clk 0:03:00]} 11. O-O-O {[%clk 0:02:45]}  Rc8 {[%clk 0:02:56]} 12. Kb1 {[%clk 0:02:45]}  Nd5 {[%clk 0:02:50]} 13. Qd2 {[%clk 0:02:41]}  b5 {[%clk 0:02:49]} 14. h4 {[%clk 0:02:37]}  b4 {[%clk 0:02:48]} 15. Ka1 {[%clk 0:02:26]}  Qa5 {[%clk 0:02:46]} 16. Ne2 {[%clk 0:02:19]}  N7f6 {[%clk 0:02:43]} 17. Nc1 {[%clk 0:02:17]}  Nc3 {[%clk 0:02:36]} 18. Rde1 {[%clk 0:01:50]}  Bxf3 {[%clk 0:02:29]} 19. gxf3 {[%clk 0:01:51]}  Nfd5 {[%clk 0:02:23]} 20. Rhg1 {[%clk 0:01:40]}  Kh8 {[%clk 0:02:00]} 21. Bxh7 {[%clk 0:01:22]}  Nf6 {[%clk 0:01:46]} 22. Bd3 {[%clk 0:01:18]}  Rg8 {[%clk 0:01:41]} 23. Qg5 {[%clk 0:01:06]}  Ncd5 {[%clk 0:01:35]} 24. h5 {[%clk 0:01:01]}  Qb6 {[%clk 0:01:34]} 25. Re4 {[%clk 0:00:27]}  Nxe4 {[%clk 0:01:27]} 26. fxe4 {[%clk 0:00:23]}  f6 {[%clk 0:01:10]} 27. Qg4 {[%clk 0:00:17]}  Nc7 {[%clk 0:01:07]} 28. Qg6 {[%clk 0:00:17]}  Qxd4 {[%clk 0:01:00]} 29. h6 {[%clk 0:00:15]}  f5 {[%clk 0:01:00]} 30. exf5 {[%clk 0:00:11]}  Ne8 {[%clk 0:00:40]} 31. hxg7+ {[%clk 0:00:11]}  Rxg7 {[%clk 0:00:40]} 32. Rh1+ {[%clk 0:00:11]}  Kg8 {[%clk 0:00:40]} 33. Qxe6+ {[%clk 0:00:11]}  Kf8 {[%clk 0:00:40]} 34. Rh8+ {[%clk 0:00:10]} 1-0


[Site "https://www.chess.com"]

[Event "Titled Tuesday Blitz January 04 2022"]
[White "Narayanan.S.L"]
[Black "Krasilnikov, Evgeni"]
[WhiteFideId "5058422"]
[BlackFideId "4139739"]
[WhiteElo "2494"]
[BlackElo "2295"]
[Result "1-0"]
[Round "01"]
[TimeControl "180+1"]
[Date "2022.01.04"]
[WhiteClock "0:02:24"]
[BlackClock "0:02:02"]

1. Nf3 {[%clk 0:02:39]}  Nf6 {[%clk 0:02:58]} 2. c4 {[%clk 0:02:40]}  g6 {[%clk 0:02:57]} 3. Nc3 {[%clk 0:02:40]}  Bg7 {[%clk 0:02:58]} 4. e4 {[%clk 0:02:40]}  d6 {[%clk 0:02:58]} 5. d4 {[%clk 0:02:41]}  O-O {[%clk 0:02:58]} 6. h3 {[%clk 0:02:41]}  e5 {[%clk 0:02:58]} 7. d5 {[%clk 0:02:41]}  a5 {[%clk 0:02:58]} 8. g4 {[%clk 0:02:41]}  Na6 {[%clk 0:02:56]} 9. Be3 {[%clk 0:02:42]}  Nc5 {[%clk 0:02:44]} 10. Nd2 {[%clk 0:02:42]}  Ne8 {[%clk 0:02:44]} 11. Rg1 {[%clk 0:02:41]}  Kh8 {[%clk 0:02:41]} 12. Be2 {[%clk 0:02:35]}  f5 {[%clk 0:02:41]} 13. gxf5 {[%clk 0:02:35]}  gxf5 {[%clk 0:02:41]} 14. exf5 {[%clk 0:02:34]}  Bxf5 {[%clk 0:02:41]} 15. Bxc5 {[%clk 0:02:35]}  dxc5 {[%clk 0:02:40]} 16. Bg4 {[%clk 0:02:36]}  Bg6 {[%clk 0:02:35]} 17. Qe2 {[%clk 0:02:34]}  Nd6 {[%clk 0:02:33]} 18. O-O-O {[%clk 0:02:33]}  Rf4 {[%clk 0:02:27]} 19. Bh5 {[%clk 0:02:30]}  Bf5 {[%clk 0:02:22]} 20. Rxg7 {[%clk 0:02:30]}  Kxg7 {[%clk 0:02:21]} 21. Qxe5+ {[%clk 0:02:30]}  Kh6 {[%clk 0:02:13]} 22. Qxf4+ {[%clk 0:02:29]}  Kxh5 {[%clk 0:02:13]} 23. Rg1 {[%clk 0:02:29]}  Qh4 {[%clk 0:02:02]} 24. Qf3+ {[%clk 0:02:24]}  Kh6 {[%clk 0:02:02]} 25. Qe3+ {[%clk 0:02:24]}  Kh5 {[%clk 0:02:02]} 26. Nf3 {[%clk 0:02:24]} 1-0


[Site "https://www.chess.com"]

[Event "Titled Tuesday Blitz January 04 2022"]
[White "Nguyen, Ngoc Truong Son"]
[Black "Fedorovsky, Michael"]
[WhiteFideId "12401110"]
[BlackFideId "14105454"]
[WhiteElo "2596"]
[BlackElo "2279"]
[Result "1-0"]
[Round "01"]
[TimeControl "180+1"]
[Date "2022.01.04"]
[WhiteClock "0:00:15"]
[BlackClock "0:00:01"]

1. d4 {[%clk 0:02:59]}  Nf6 {[%clk 0:02:57]} 2. Nf3 {[%clk 0:03:00]}  d5 {[%clk 0:02:57]} 3. Bf4 {[%clk 0:02:59]}  c5 {[%clk 0:02:57]} 4. e3 {[%clk 0:03:00]}  Nc6 {[%clk 0:02:57]} 5. Nbd2 {[%clk 0:02:59]}  Bg4 {[%clk 0:02:47]} 6. c3 {[%clk 0:02:55]}  e6 {[%clk 0:02:47]} 7. Bd3 {[%clk 0:02:52]}  Bd6 {[%clk 0:02:47]} 8. Bg3 {[%clk 0:02:51]}  O-O {[%clk 0:02:46]} 9. Qb1 {[%clk 0:02:44]}  Bxf3 {[%clk 0:02:30]} 10. Nxf3 {[%clk 0:02:43]}  h6 {[%clk 0:02:24]} 11. dxc5 {[%clk 0:02:28]}  Bxc5 {[%clk 0:02:23]} 12. O-O {[%clk 0:02:27]}  Qe7 {[%clk 0:02:20]} 13. Rd1 {[%clk 0:02:13]}  e5 {[%clk 0:02:19]} 14. Bb5 {[%clk 0:02:05]}  e4 {[%clk 0:02:14]} 15. Nd4 {[%clk 0:01:58]}  Nxd4 {[%clk 0:02:13]} 16. cxd4 {[%clk 0:01:59]}  Bd6 {[%clk 0:02:12]} 17. Qc2 {[%clk 0:01:51]}  Bxg3 {[%clk 0:02:07]} 18. hxg3 {[%clk 0:01:52]}  Rac8 {[%clk 0:01:58]} 19. Qb3 {[%clk 0:01:51]}  Qe6 {[%clk 0:01:49]} 20. Be2 {[%clk 0:01:48]}  Rc7 {[%clk 0:01:44]} 21. Rac1 {[%clk 0:01:48]}  Rfc8 {[%clk 0:01:42]} 22. Rxc7 {[%clk 0:01:45]}  Rxc7 {[%clk 0:01:43]} 23. Qb4 {[%clk 0:01:30]}  Qb6 {[%clk 0:01:41]} 24. Qxb6 {[%clk 0:01:18]}  axb6 {[%clk 0:01:42]} 25. Rb1 {[%clk 0:01:10]}  Kf8 {[%clk 0:01:33]} 26. Kf1 {[%clk 0:01:09]}  h5 {[%clk 0:01:24]} 27. f3 {[%clk 0:01:07]}  g6 {[%clk 0:01:17]} 28. Ke1 {[%clk 0:01:07]}  Ke7 {[%clk 0:01:15]} 29. Kd2 {[%clk 0:01:07]}  Kd6 {[%clk 0:01:14]} 30. Rf1 {[%clk 0:01:04]}  Ke6 {[%clk 0:01:06]} 31. Bd1 {[%clk 0:01:04]}  exf3 {[%clk 0:01:02]} 32. gxf3 {[%clk 0:01:05]}  Ne8 {[%clk 0:00:55]} 33. Bb3 {[%clk 0:00:53]}  Nd6 {[%clk 0:00:49]} 34. e4 {[%clk 0:00:39]}  Nc4+ {[%clk 0:00:49]} 35. Bxc4 {[%clk 0:00:39]}  Rxc4 {[%clk 0:00:48]} 36. Kd3 {[%clk 0:00:39]}  b5 {[%clk 0:00:46]} 37. Re1 {[%clk 0:00:35]}  f6 {[%clk 0:00:37]} 38. e5 {[%clk 0:00:33]}  f5 {[%clk 0:00:31]} 39. f4 {[%clk 0:00:30]}  Ra4 {[%clk 0:00:24]} 40. Ra1 {[%clk 0:00:20]}  Rc4 {[%clk 0:00:19]} 41. a3 {[%clk 0:00:15]}  Rc6 {[%clk 0:00:18]} 42. Rd1 {[%clk 0:00:14]}  Rc4 {[%clk 0:00:18]} 43. Rd2 {[%clk 0:00:13]}  Rc6 {[%clk 0:00:18]} 44. Rc2 {[%clk 0:00:14]}  Rc4 {[%clk 0:00:18]} 45. b3 {[%clk 0:00:13]}  Rxc2 {[%clk 0:00:06]} 46. Kxc2 {[%clk 0:00:14]}  Ke7 {[%clk 0:00:05]} 47. Kd3 {[%clk 0:00:14]}  Ke6 {[%clk 0:00:05]} 48. Ke3 {[%clk 0:00:14]}  Ke7 {[%clk 0:00:05]} 49. Kf2 {[%clk 0:00:15]}  Ke6 {[%clk 0:00:02]} 50. Kg2 {[%clk 0:00:15]}  Ke7 {[%clk 0:00:01]} 51. Kh3 {[%clk 0:00:15]} 1-0


[Site "https://www.chess.com"]

[Event "Titled Tuesday Blitz January 04 2022"]
[White "Nogerbek, Kazybek"]
[Black "Mei, Austin"]
[WhiteFideId "13710427"]
[BlackFideId "30948479"]
[WhiteElo "2478"]
[BlackElo "1936"]
[Result "0-1"]
[Round "01"]
[TimeControl "180+1"]
[Date "2022.01.04"]
[WhiteClock "0:01:08"]
[BlackClock "0:00:15"]

1. c4 {[%clk 0:02:58]}  f5 {[%clk 0:02:57]} 2. g3 {[%clk 0:02:55]}  Nf6 {[%clk 0:02:56]} 3. Bg2 {[%clk 0:02:53]}  g6 {[%clk 0:02:57]} 4. Nc3 {[%clk 0:02:45]}  Bg7 {[%clk 0:02:57]} 5. d4 {[%clk 0:02:46]}  O-O {[%clk 0:02:56]} 6. Nf3 {[%clk 0:02:46]}  d6 {[%clk 0:02:56]} 7. O-O {[%clk 0:02:47]}  Nc6 {[%clk 0:02:57]} 8. d5 {[%clk 0:02:43]}  Na5 {[%clk 0:02:57]} 9. Qd3 {[%clk 0:02:40]}  c5 {[%clk 0:02:57]} 10. Nd2 {[%clk 0:02:37]}  a6 {[%clk 0:02:56]} 11. e4 {[%clk 0:02:37]}  fxe4 {[%clk 0:02:52]} 12. Ndxe4 {[%clk 0:02:37]}  Rb8 {[%clk 0:02:52]} 13. Nxf6+ {[%clk 0:02:35]}  Bxf6 {[%clk 0:02:52]} 14. Bh6 {[%clk 0:02:36]}  Bf5 {[%clk 0:02:37]} 15. Qe2 {[%clk 0:02:34]}  Rf7 {[%clk 0:02:28]} 16. Ne4 {[%clk 0:02:28]}  b5 {[%clk 0:02:03]} 17. Nxf6+ {[%clk 0:02:21]}  exf6 {[%clk 0:02:04]} 18. b3 {[%clk 0:02:19]}  bxc4 {[%clk 0:01:31]} 19. Rfe1 {[%clk 0:02:18]}  cxb3 {[%clk 0:01:11]} 20. axb3 {[%clk 0:02:19]}  Nxb3 {[%clk 0:00:54]} 21. Rxa6 {[%clk 0:02:17]}  Nd4 {[%clk 0:00:50]} 22. Qd2 {[%clk 0:02:17]}  Re7 {[%clk 0:00:37]} 23. Bf4 {[%clk 0:02:10]}  Rxe1+ {[%clk 0:00:33]} 24. Qxe1 {[%clk 0:02:10]}  Rb1 {[%clk 0:00:34]} 25. Qxb1 {[%clk 0:02:06]}  Bxb1 {[%clk 0:00:35]} 26. Rxd6 {[%clk 0:02:06]}  Qa5 {[%clk 0:00:33]} 27. Bf1 {[%clk 0:01:47]}  Qe1 {[%clk 0:00:29]} 28. Bh6 {[%clk 0:01:21]}  Bd3 {[%clk 0:00:15]} 29. Rd8+ {[%clk 0:01:15]}  Kf7 {[%clk 0:00:15]} 30. Rf8+ {[%clk 0:01:16]}  Ke7 {[%clk 0:00:16]} 31. d6+ {[%clk 0:01:10]}  Kxd6 {[%clk 0:00:15]} 32. Rxf6+ {[%clk 0:01:08]}  Kd5 {[%clk 0:00:15]} 0-1


[Site "https://www.chess.com"]

[Event "Titled Tuesday Blitz January 04 2022"]
[White "Piorun, Kacper"]
[Black "Cremisi, Daniel"]
[WhiteFideId "1130420"]
[BlackFideId "2089882"]
[WhiteElo "2571"]
[BlackElo "2172"]
[Result "1-0"]
[Round "01"]
[TimeControl "180+1"]
[Date "2022.01.04"]
[WhiteClock "0:00:44"]
[BlackClock "0:00:13"]

1. e4 {[%clk 0:03:00]}  e6 {[%clk 0:02:59]} 2. d4 {[%clk 0:03:00]}  d5 {[%clk 0:02:59]} 3. e5 {[%clk 0:03:00]}  c5 {[%clk 0:03:00]} 4. c3 {[%clk 0:03:01]}  Nc6 {[%clk 0:03:00]} 5. Nf3 {[%clk 0:03:01]}  Qb6 {[%clk 0:03:01]} 6. Bd3 {[%clk 0:03:01]}  cxd4 {[%clk 0:03:01]} 7. O-O {[%clk 0:03:00]}  Bd7 {[%clk 0:02:55]} 8. Re1 {[%clk 0:02:57]}  dxc3 {[%clk 0:02:52]} 9. Nxc3 {[%clk 0:02:57]}  Nge7 {[%clk 0:02:53]} 10. h4 {[%clk 0:02:54]}  f6 {[%clk 0:02:30]} 11. Na4 {[%clk 0:02:44]}  Qc7 {[%clk 0:02:25]} 12. exf6 {[%clk 0:02:38]}  gxf6 {[%clk 0:02:25]} 13. Nc5 {[%clk 0:02:37]}  e5 {[%clk 0:02:15]} 14. Ng5 {[%clk 0:02:12]}  fxg5 {[%clk 0:02:04]} 15. Qh5+ {[%clk 0:02:12]}  Kd8 {[%clk 0:02:04]} 16. Bxg5 {[%clk 0:02:12]}  Kc8 {[%clk 0:01:26]} 17. Rac1 {[%clk 0:02:08]}  e4 {[%clk 0:01:21]} 18. Be2 {[%clk 0:02:01]}  Qe5 {[%clk 0:01:17]} 19. Nxd7 {[%clk 0:01:37]}  Kxd7 {[%clk 0:01:16]} 20. Bg4+ {[%clk 0:01:35]}  Kc7 {[%clk 0:01:05]} 21. g3 {[%clk 0:01:27]}  Ng6 {[%clk 0:01:03]} 22. Bf4 {[%clk 0:01:26]}  Nxf4 {[%clk 0:00:46]} 23. Qxe5+ {[%clk 0:01:26]}  Bd6 {[%clk 0:00:46]} 24. Qg7+ {[%clk 0:01:24]}  Kb6 {[%clk 0:00:44]} 25. gxf4 {[%clk 0:00:57]}  Rhg8 {[%clk 0:00:41]} 26. Qd7 {[%clk 0:00:57]}  Bxf4 {[%clk 0:00:39]} 27. Kf1 {[%clk 0:00:54]}  Bxc1 {[%clk 0:00:39]} 28. Rxc1 {[%clk 0:00:54]}  Rad8 {[%clk 0:00:34]} 29. Qe6 {[%clk 0:00:52]}  Rde8 {[%clk 0:00:33]} 30. Qxd5 {[%clk 0:00:52]}  Rxg4 {[%clk 0:00:31]} 31. b4 {[%clk 0:00:45]}  Reg8 {[%clk 0:00:30]} 32. Qc5+ {[%clk 0:00:46]}  Kc7 {[%clk 0:00:28]} 33. b5 {[%clk 0:00:46]}  Rg1+ {[%clk 0:00:24]} 34. Ke2 {[%clk 0:00:46]}  Rxc1 {[%clk 0:00:23]} 35. Qxc1 {[%clk 0:00:47]}  Rg6 {[%clk 0:00:21]} 36. bxc6 {[%clk 0:00:47]}  Rxc6 {[%clk 0:00:18]} 37. Qf4+ {[%clk 0:00:47]}  Kd7 {[%clk 0:00:19]} 38. Qf7+ {[%clk 0:00:46]}  Kd6 {[%clk 0:00:19]} 39. Qxb7 {[%clk 0:00:46]}  Rc2+ {[%clk 0:00:19]} 40. Ke3 {[%clk 0:00:47]}  Rxa2 {[%clk 0:00:20]} 41. Qb4+ {[%clk 0:00:46]}  Ke5 {[%clk 0:00:13]} 42. Qd4+ {[%clk 0:00:44]} 1-0


[Site "https://www.chess.com"]